Workbook

Sheet Sheet1 graph (2)
A1: Accuracy of genomic prediction based on Goddard et al. (2011), with notation after Dekkers (2007) | E1: and other methods
E3: Goddard, M.E. Genomic selection: prediction of accuracy and maximisation of long term response. Genetica 136, 245-257 (2009).
E4: Goddard, M.E., Hayes, B.J. & Meuwissen, T.H.E. Using the genomic relationship matrix to predict the accuracy of genomic selection. Journal of Animal Breeding and Genetics 128, 409-421 (2011).
E5: Meuwissen, T., Hayes, B. & Goddard, M. Accelerating Improvement of Livestock with Genomic Selection. Annual Review of Animal Biosciences 1, 221-237 (2013).
E6: Daetwyler, H.D., Villanueva, B. & Woolliams, J.A. Accuracy of predicting the genetic risk of disease using a genome-wide approach. PLOS ONE 3, e3395 (2008).
E7: Lee, S.H., Weerasinghe, W.M. S.P. , Wray, N. R., Goddard, M.E., and van der Werf, J.H.J. Using information of relatives in genomic prediction to apply effective stratified medicine. Scientific Reports. (2017) Also bioRxiv (2016): 054494
A8: # markers | B8: M = | C8: 50000
A9: Effective population size | B9: Ne = | C9: 1500
A10: Average chromosome size (M) | B10: L = | C10: 1 | N10: nchrom | O10: Me Lee et al | P10: Me Goddard
A11: Number of chromosomes | B11: k = | C11: 30 | N11: 50 | O11: 126.7793762
A12: Heritability of phenotypes | B12: h2 = | C12: 0.5 | N12: 100 | O12: 246.4847205
A13: Number of training individuals | B13: T = | C13: 5000 | D13: Alternate derivations of Me | N13: 150 | O13: 363.7452286
C14: Goddard et al. 2011 | D14: Meuwissen et al., 2013 | E14: Goddard 2009 | F14: Goddard 2009 | G14: Goddard 2009 | H14: Daetwyler et al 2008 | I14: Lee et al 2017 | J14: doi: http://dx.doi.org/10.1101/054494 | N14: 200 | O14: 479.4715915
C15: Me = 2NeLk/ln(NeL) | D15: Me = 2NeLk/ln(2Ne) | E15: Me = 2NeLk/ln(4NeLk) | F15: Me = 2NeLk | G15: Me=4NeLk | H15: Me = 2NeLk | I15: Eq. (10) | J15: Eq(11) | N15: 250 | O15: 594.0830077
A16: Effective number of chr. Segments | B16: Me = | C16: =2*C9*C10*C11/LN(C9*C10) -> 12306.47994 | D16: =2*C9*C10*C11/LN(2*C9) -> 11241.05273 | E16: =2*C9*C10*C11/LN(4*C9*C10*C11) -> 7437.5788 | F16: =2*C9*C10*C11 -> 90000 | G16: =2*F16 -> 180000 | H16: =2*C9*C10*C11 -> 90000 | I16: =C$11 / ( 1/(8*C9^2*C$10^2/(LN(4*C9*C$10+1)+4*C9*C$10*(LN(4*C9*C$10+1)-1))) + (1/(3*C9)) * (C$11-1)) -> 3329.083859 | J16: =C$11 / ( 1/(4*C9^2*C$10^2/(LN(2*C9*C$10+1)+2*C9*C$10*(LN(2*C9*C$10+1)-1))) + (1/(3*C9)) * (C$11-1)) -> 3416.505881 | N16: 300 | O16: 707.8211654
A17: Proportion of genetic variance captured by markers = b | B17: q2 = | C17: =$C$8/(C16+$C$8) -> 0.8024847503 | D17: =$C$8/(D16+$C$8) -> 0.8164457953 | E17: 0.8705102312 | F17: 0.3571428571 | G17: 0.2173913043 | H17: 1 | I17: 0.9375747037 | J17: 0.936040259 | N17: 350 | O17: 820.8431675
A18: Varance ratio of resdual and effective QTL variance | B18: Lambda | C18: =C16/(C17*$C$12) -> 30670.93782 | D18: =D16/(D17*$C$12) -> 27536.55612 | E18: =E16/(E17*$C$12) -> 17087.86074 | F18: 504000 | G18: 1656000 | H18: 180000 | I18: 7101.479691 | J18: 7299.91226 | N18: 400 | O18: 933.2591924
A19: Accuracy of genomic prediction as predictor of effects captured by markers | B19: rQhat = | C19: =SQRT($C$13/($C$13+C18)) -> 0.3743930157 | D19: =SQRT($C$13/($C$13+D18)) -> 0.3920118641 | E19: =SQRT($C$13/($C$13+E18)) -> 0.4757821828 | F19: 0.09911197057 | G19: 0.0548656067 | H19: 0.1643989873 | I19: 0.6427850451 | J19: 0.6375789871 | N19: 450 | O19: 1045.150697
A20: Accuracy of genomic prediction as predictor of full breeding value | B20: rGBV = | C20: =SQRT(C17)*C19 -> 0.3353869287 | D20: =SQRT(D17)*D19 -> 0.3542116894 | E20: 0.4439101899 | F20: 0.05923073138 | G20: 0.02558122103 | H20: 0.1643989873 | I20: 0.6223987399 | J20: 0.616852401 | N20: 500 | O20: 1156.580293
N21: 550 | O21: 1267.597572
N22: 600 | O22: 1378.242755
B23: Compare methods with the same Me = | C23: 1303 | N23: 650 | O23: 1488.549102
C24: Me = 2NeLk/ln(NeL) | D24: Me = 2NeLk/ln(2Ne) | E24: Me = 2NeLk/ln(4NeLk) | F24: Me = 2NeLk | G24: Me=4NeLk | H24: Me = 2NeLk | I24: Eq. (10) | J24: Eq(11) | N24: 700 | O24: 1598.544562
A25: Effective number of chr. Segments | B25: Me = | C25: =$C23 -> 1303 | D25: =$C23 -> 1303 | E25: 1303 | F25: 1303 | G25: 1303 | H25: 1303 | I25: 1303 | J25: 1303 | N25: 750 | O25: 1708.252941
A26: Proportion of genetic variance captured by markers = b | B26: q2 = | C26: =C8/(C25+C8) -> 0.9746018751 | D26: =$C$8/(D25+$C$8) -> 0.9746018751 | E26: 0.9746018751 | F26: 0.9746018751 | G26: 0.9746018751 | H26: 1 | I26: =$C$8/(I25+$C$8) -> 0.9746018751 | J26: 0.9746018751 | N26: 800 | O26: 1817.69475
A27: Varance ratio of resdual and effective QTL variance | B27: Lambda | C27: =C25/(C26*$C$12) -> 2673.91236 | D27: =D25/(D26*$C$12) -> 2673.91236 | E27: =E25/(E26*$C$12) -> 2673.91236 | F27: =F25/(F26*$C$12) -> 2673.91236 | G27: 2673.91236 | H27: 2606 | I27: 2673.91236 | J27: 2673.91236 | N27: 850 | O27: 1926.887843
A28: Accuracy of genomic prediction as predictor of effects captured by markers | B28: rQhat = | C28: =SQRT($C$13/($C$13+C27)) -> 0.8071915087 | D28: =SQRT($C$13/($C$13+D27)) -> 0.8071915087 | E28: =SQRT($C$13/($C$13+E27)) -> 0.8071915087 | F28: 0.8071915087 | G28: 0.8071915087 | H28: 0.8107871212 | I28: 0.8071915087 | J28: 0.8071915087 | N28: 900 | O28: 2035.847895
A29: Accuracy of genomic prediction as predictor of full breeding value | B29: rGBV = | C29: =SQRT(C26)*C28 -> 0.7968750071 | D29: =SQRT(D26)*D28 -> 0.7968750071 | E29: 0.7968750071 | F29: 0.7968750071 | G29: 0.7968750071 | H29: 0.8107871212 | I29: 0.7968750071 | J29: 0.7968750071 | N29: 950 | O29: 2144.588776
N30: 1000 | O30: 2253.122841
N31: 1050 | O31: 2361.461165
N32: 1100 | O32: 2469.61373
N33: 1150 | O33: 2577.589577
N34: 1200 | O34: 2685.396933
N35: 1250 | O35: 2793.043313
N36: 1300 | O36: 2900.535611
N37: 1350 | O37: 3007.880169
N38: 1400 | O38: 3115.082846
N39: 1450 | O39: 3222.149064
N40: 1500 | O40: 3329.083859

Sheet Sheet1 graph
A1: Accuracy of genomic prediction based on Goddard et al. (2011), with notation after Dekkers (2007) | E1: and other methods
E3: Goddard, M.E. Genomic selection: prediction of accuracy and maximisation of long term response. Genetica 136, 245-257 (2009).
E4: Goddard, M.E., Hayes, B.J. & Meuwissen, T.H.E. Using the genomic relationship matrix to predict the accuracy of genomic selection. Journal of Animal Breeding and Genetics 128, 409-421 (2011).
E5: Meuwissen, T., Hayes, B. & Goddard, M. Accelerating Improvement of Livestock with Genomic Selection. Annual Review of Animal Biosciences 1, 221-237 (2013).
E6: Daetwyler, H.D., Villanueva, B. & Woolliams, J.A. Accuracy of predicting the genetic risk of disease using a genome-wide approach. PLOS ONE 3, e3395 (2008).
E7: Lee, S.H., Weerasinghe, W.M. S.P. , Wray, N. R., Goddard, M.E., and van der Werf, J.H.J. Using information of relatives in genomic prediction to apply effective stratified medicine. Scientific Reports. (2017) Also bioRxiv (2016): 054494
A8: # markers | B8: M = | C8: 50000
A9: Effective population size | B9: Ne = | C9: 400
A10: Average chromosome size (M) | B10: L = | C10: 1 | N10: nchrom | O10: Me Goddard | P10: Me Lee et al
A11: Number of chromosomes | B11: k = | C11: 30 | N11: 1 | O11: 133.5232803 | P11: 125.3330098
A12: Heritability of phenotypes | B12: h2 = | C12: 0.3 | N12: 2 | O12: 267.0465606 | P12: 226.9612401
A13: Number of training individuals | B13: T = | C13: 10000 | D13: Alternate derivations of Me | N13: 3 | O13: 400.5698408 | P13: 311.0287475
C14: Goddard et al. 2011 | D14: Meuwissen et al., 2013 | E14: Goddard 2009 | F14: Goddard 2009 | G14: Goddard 2009 | H14: Daetwyler et al 2008 | I14: Lee et al 2017 | J14: doi: http://dx.doi.org/10.1101/054494 | N14: 4 | O14: 534.0931211 | P14: 381.7251379
C15: Me = 2NeLk/ln(NeL) | D15: Me = 2NeLk/ln(2Ne) | E15: Me = 2NeLk/ln(4NeLk) | F15: Me = 2NeLk | G15: Me=4NeLk | H15: Me = 2NeLk | I15: Eq. (10) | J15: Eq(11) | N15: 5 | O15: 667.6164014 | P15: 442.0054647
A16: Effective number of chr. Segments | B16: Me = | C16: =2*C9*C10*C11/LN(C9*C10) -> 4005.698408 | D16: =2*C9*C10*C11/LN(2*C9) -> 3590.335681 | E16: =2*C9*C10*C11/LN(4*C9*C10*C11) -> 2226.560657 | F16: =2*C9*C10*C11 -> 24000 | G16: =2*F16 -> 48000 | H16: =2*C9*C10*C11 -> 24000 | I16: =C$11 / ( 1/(8*C9^2*C$10^2/(LN(4*C9*C$10+1)+4*C9*C$10*(LN(4*C9*C$10+1)-1))) + (1/(3*C9)) * (C$11-1)) -> 933.2591924 | J16: =C$11 / ( 1/(4*C9^2*C$10^2/(LN(2*C9*C$10+1)+2*C9*C$10*(LN(2*C9*C$10+1)-1))) + (1/(3*C9)) * (C$11-1)) -> 958.943183 | N16: 6 | O16: 801.1396817 | P16: 494.0137607
A17: Proportion of genetic variance captured by markers = b | B17: q2 = | C17: =$C$8/(C16+$C$8) -> 0.9258282269 | D17: =$C$8/(D16+$C$8) -> 0.9330040457 | E17: 0.9573672739 | F17: 0.6756756757 | G17: 0.5102040816 | H17: 1 | I17: 0.9816768216 | J17: 0.9811820434 | N17: 7 | O17: 934.6629619 | P17: 539.3434063
A18: Varance ratio of resdual and effective QTL variance | B18: Lambda | C18: =C16/(C17*$C$12) -> 14422.03601 | D18: =D16/(D17*$C$12) -> 12827.15296 | E18: =E16/(E17*$C$12) -> 7752.373681 | F18: 118400 | G18: 313600 | H18: 80000 | I18: 3168.928823 | J18: 3257.782079 | N18: 8 | O18: 1068.186242 | P18: 579.203244
A19: Accuracy of genomic prediction as predictor of effects captured by markers | B19: rQhat = | C19: =SQRT($C$13/($C$13+C18)) -> 0.6398955152 | D19: =SQRT($C$13/($C$13+D18)) -> 0.6618721777 | E19: =SQRT($C$13/($C$13+E18)) -> 0.7505364427 | F19: 0.2790727861 | G19: 0.1757906385 | H19: 0.3333333333 | I19: 0.8714144853 | J19: 0.8684894794 | N19: 9 | O19: 1201.709523 | P19: 614.5269807
A20: Accuracy of genomic prediction as predictor of full breeding value | B20: rGBV = | C20: =SQRT(C17)*C19 -> 0.6157072609 | D20: =SQRT(D17)*D19 -> 0.6393164644 | E20: 0.7343634836 | F20: 0.2293964171 | G20: 0.1255647418 | H20: 0.3333333333 | I20: 0.8633940339 | J20: 0.8602790715 | N20: 10 | O20: 1335.232803 | P20: 646.0472502
N21: 11 | O21: 1468.756083 | P21: 674.3469745
N22: 12 | O22: 1602.279363 | P22: 699.8957465
B23: Compare methods with the same Me = | C23: 8000 | N23: 13 | O23: 1735.802644 | P23: 723.0760946
C24: Me = 2NeLk/ln(NeL) | D24: Me = 2NeLk/ln(2Ne) | E24: Me = 2NeLk/ln(4NeLk) | F24: Me = 2NeLk | G24: Me=4NeLk | H24: Me = 2NeLk | I24: Eq. (10) | J24: Eq(11) | N24: 14 | O24: 1869.325924 | P24: 744.2027666
A25: Effective number of chr. Segments | B25: Me = | C25: =$C23 -> 8000 | D25: =$C23 -> 8000 | E25: 8000 | F25: 8000 | G25: 8000 | H25: 8000 | I25: 8000 | J25: 8000 | N25: 15 | O25: 2002.849204 | P25: 763.5371055
A26: Proportion of genetic variance captured by markers = b | B26: q2 = | C26: =C8/(C25+C8) -> 0.8620689655 | D26: =$C$8/(D25+$C$8) -> 0.8620689655 | E26: =$C$8/(E25+$C$8) -> 0.8620689655 | F26: =$C$8/(F25+$C$8) -> 0.8620689655 | G26: =$C$8/(G25+$C$8) -> 0.8620689655 | H26: 1 | I26: =$C$8/(I25+$C$8) -> 0.8620689655 | J26: =$C$8/(J25+$C$8) -> 0.8620689655 | N26: 16 | O26: 2136.372484 | P26: 781.2979154
A27: Varance ratio of resdual and effective QTL variance | B27: Lambda | C27: =C25/(C26*$C$12) -> 30933.33333 | D27: =D25/(D26*$C$12) -> 30933.33333 | E27: =E25/(E26*$C$12) -> 30933.33333 | F27: =F25/(F26*$C$12) -> 30933.33333 | G27: =G25/(G26*$C$12) -> 30933.33333 | H27: =H25/(H26*$C$12) -> 26666.66667 | I27: =I25/(I26*$C$12) -> 30933.33333 | J27: =J25/(J26*$C$12) -> 30933.33333 | N27: 17 | O27: 2269.895765 | P27: 797.6697781
A28: Accuracy of genomic prediction as predictor of effects captured by markers | B28: rQhat = | C28: =SQRT($C$13/($C$13+C27)) -> 0.4942668047 | D28: =SQRT($C$13/($C$13+D27)) -> 0.4942668047 | E28: =SQRT($C$13/($C$13+E27)) -> 0.4942668047 | F28: =SQRT($C$13/($C$13+F27)) -> 0.4942668047 | G28: =SQRT($C$13/($C$13+G27)) -> 0.4942668047 | H28: =SQRT($C$13/($C$13+H27)) -> 0.5222329679 | I28: =SQRT($C$13/($C$13+I27)) -> 0.4942668047 | J28: =SQRT($C$13/($C$13+J27)) -> 0.4942668047 | N28: 18 | O28: 2403.419045 | P28: 812.8094921
A29: Accuracy of genomic prediction as predictor of full breeding value | B29: rGBV = | C29: =SQRT(C26)*C28 -> 0.4589152073 | D29: =SQRT(D26)*D28 -> 0.4589152073 | E29: =SQRT(E26)*E28 -> 0.4589152073 | F29: =SQRT(F26)*F28 -> 0.4589152073 | G29: =SQRT(G26)*G28 -> 0.4589152073 | H29: =SQRT(H26)*H28 -> 0.5222329679 | I29: =SQRT(I26)*I28 -> 0.4589152073 | J29: =SQRT(J26)*J28 -> 0.4589152073 | N29: 19 | O29: 2536.942325 | P29: 826.8511106
N30: 20 | O30: 2670.465606 | P30: 839.9099212
N31: 21 | O31: 2803.988886 | P31: 852.0856187
N32: 22 | O32: 2937.512166 | P32: 863.4648551
C33: T= | D33: 4000 | N33: 23 | O33: 3071.035446 | P33: 874.1233049
C34: ; h2= | D34: 0.1 | E34: 0.3 | N34: 24 | O34: 3204.558727 | P34: 884.12735
D35: =CONCATENATE(C33,D33,C34,D34) -> T=4000 ; h2=0.1 | E35: =CONCATENATE(C33,D33,C34,E34) -> T=4000 ; h2=0.3 | N35: 25 | O35: 3338.082007 | P35: 893.5354638
B36: Me | C36: 400 | D36: 0.7028908336 | E36: 0.8617206589 | N36: 26 | O36: 3471.605287 | P36: 902.3993548
C37: 800 | D37: 0.569755528 | E37: 0.766025906 | N37: 27 | O37: 3605.128568 | P37: 910.7649174
C38: 1200 | D38: 0.4897180788 | E38: 0.6946159757 | N38: 28 | O38: 3738.651848 | P38: 918.6730266
C39: 1600 | D39: 0.4346964997 | E39: 0.6386117915 | N39: 29 | O39: 3872.175128 | P39: 926.1602061
C40: 2000 | D40: 0.3938106761 | E40: 0.5931124379 | N40: 30 | O40: 4005.698408 | P40: 933.2591924
C41: 2400 | D41: 0.3618388352 | E41: 0.5551609147 | Q41: ; Ne= | R41: 400
C42: 2800 | D42: 0.3359195681 | E42: 0.522852392 | Q42: h2= | R42: 0.3
C43: 3200 | D43: 0.3143353796 | E43: 0.4948965462 | Q43: N | R43: =CONCATENATE("Acc Goddard",Q42,R42,Q41,R41) -> Acc Goddard h2=0.3; Ne=400 | S43: =CONCATENATE("Acc Lee",Q42,R42,Q41,R41) -> Acc Lee h2=0.3; Ne=400
C44: 3600 | D44: 0.2959842392 | E44: 0.4703837458 | Q44: 500 | R44: 0.1761311493 | S44: 0.3657628792
C45: 4000 | D45: 0.2801219356 | E45: 0.448651585 | Q45: 1000 | R45: 0.2450159474 | S45: 0.4852572451
C46: 4400 | D46: 0.2662251322 | E46: 0.4292045254 | Q46: 1500 | R46: 0.2953327011 | S46: 0.5615924641
C47: 4800 | D47: 0.2539135123 | E47: 0.4116633438 | Q47: 2000 | R47: 0.3357891867 | S47: 0.616309682
C48: 5200 | D48: 0.2429030581 | E48: 0.3957321378 | Q48: 2500 | R48: 0.3698357636 | S48: 0.6579664825
C49: 5600 | D49: 0.2329767397 | E49: 0.3811761068 | Q49: 3000 | R49: 0.3992789204 | S49: 0.6909394917
C50: 6000 | D50: 0.2239654296 | E50: 0.367806179 | Q50: 3500 | R50: 0.4252120448 | S50: 0.7177781761
C51: 6400 | D51: 0.2157350745 | E51: 0.3554681222 | Q51: 4000 | R51: 0.4483595153 | S51: 0.7400944202
C52: 6800 | D52: 0.2081778363 | E52: 0.3440346703 | Q52: 4500 | R52: 0.4692319044 | S52: 0.7589674872
C53: 7200 | D53: 0.2012058261 | E53: 0.3333997235 | Q53: 5000 | R53: 0.4882056862 | S53: 0.7751517194
C54: 7600 | D54: 0.1947465793 | E54: 0.3234740073 | Q54: 5500 | R54: 0.5055681347 | S54: 0.7891924007
C55: 8000 | D55: 0.1887397269 | E55: 0.3141817736 | Q55: 6000 | R55: 0.5215444343 | S55: 0.8014945858
Q56: 6500 | R56: 0.5363149638 | S56: 0.8123660499
Q57: 7000 | R57: 0.5500268067 | S57: 0.8220451753
Q58: 7500 | R58: 0.5628016954 | S58: 0.830719665
Q59: 8000 | R59: 0.5747416619 | S59: 0.8385394521
Q60: 8500 | R60: 0.5859331593 | S60: 0.8456258217
Q61: 9000 | R61: 0.5964501351 | S61: 0.8520779911
Q62: 9500 | R62: 0.606356366 | S62: 0.8579779429
Q63: 10000 | R63: 0.6157072609 | S63: 0.8633940339
Q77: Ne | R77: Acc Goddard | S77: Acc Lee et al
Q78: 50 | R78: 0.805199885 | S78: 0.9589335123
Q79: 100 | R79: 0.7178650617 | S79: 0.9241540472
Q80: 150 | R80: 0.6563970132 | S80: 0.893244304
Q81: 200 | R81: 0.6091336995 | S81: 0.8653559745
Q82: 250 | R82: 0.5709530671 | S82: 0.8399493459
Q83: 300 | R83: 0.5390902568 | S83: 0.8166348611
Q84: 350 | R84: 0.511871817 | S84: 0.7951143861
Q85: 400 | R85: 0.4882056862 | S85: 0.7751517194
Q86: 450 | R86: 0.4673395772 | S86: 0.7565552755
Q87: 500 | R87: 0.4487335 | S87: 0.7391669228
Q88: 550 | R88: 0.4319870477 | S88: 0.7228543357
Q89: 600 | R89: 0.4167953668 | S89: 0.7075055282
Q90: 650 | R90: 0.4029212038 | S90: 0.6930248198
Q91: 700 | R91: 0.3901764558 | S91: 0.6793297863
Q92: 750 | R92: 0.3784095954 | S92: 0.6663489075
Q93: 800 | R93: 0.3674968604 | S93: 0.6540197249
Q94: 850 | R94: 0.3573359338 | S94: 0.6422873779
Q95: 900 | R95: 0.3478413168 | S95: 0.6311034259
Q96: 950 | R96: 0.3389408786 | S96: 0.6204248933
Q97: 1000 | R97: 0.3305732424 | S97: 0.6102134848
Q98: 1050 | R98: 0.3226857772 | S98: 0.6004349377
Q99: 1100 | R99: 0.3152330333 | S99: 0.5910584826
Q100: 1150 | R100: 0.3081755113 | S100: 0.5820563906
Q101: 1200 | R101: 0.3014786808 | S101: 0.5734035918
Q102: 1250 | R102: 0.2951121933 | S102: 0.5650773513
Q103: 1300 | R103: 0.2890492426 | S103: 0.5570569931
Q104: 1350 | R104: 0.2832660427 | S104: 0.5493236629
Q105: 1400 | R105: 0.2777413972 | S105: 0.5418601242
Q106: 1450 | R106: 0.2724563427 | S106: 0.5346505823
Q107: 1500 | R107: 0.2673938504 | S107: 0.5276805304

Sheet Sheet1
A1: Accuracy of genomic prediction based on Goddard et al. (2011), with notation after Dekkers (2007) | E1: and other methods
E3: Goddard, M.E. Genomic selection: prediction of accuracy and maximisation of long term response. Genetica 136, 245-257 (2009).
E4: Goddard, M.E., Hayes, B.J. & Meuwissen, T.H.E. Using the genomic relationship matrix to predict the accuracy of genomic selection. Journal of Animal Breeding and Genetics 128, 409-421 (2011).
E5: Meuwissen, T., Hayes, B. & Goddard, M. Accelerating Improvement of Livestock with Genomic Selection. Annual Review of Animal Biosciences 1, 221-237 (2013).
E6: Daetwyler, H.D., Villanueva, B. & Woolliams, J.A. Accuracy of predicting the genetic risk of disease using a genome-wide approach. PLOS ONE 3, e3395 (2008).
E7: Lee, S.H., Weerasinghe, W.M. S.P. , Wray, N. R., Goddard, M.E., and van der Werf, J.H.J. Using information of relatives in genomic prediction to apply effective stratified medicine. Scientific Reports. (2017) Also bioRxiv (2016): 054494
A8: # markers | B8: M = | C8: 50000
A9: Effective population size | B9: Ne = | C9: 1000
A10: Average chromosome size (M) | B10: L = | C10: 1
A11: Number of chromosomes | B11: k = | C11: 30
A12: Heritability of phenotypes | B12: h2 = | C12: 0.3
A13: Number of training individuals | B13: T = | C13: 2000 | D13: Alternate derivations of Me
C14: Goddard et al. 2011 | D14: Meuwissen et al., 2013 | E14: Goddard 2009 | F14: Goddard 2009 | G14: Goddard 2009 | H14: Daetwyler et al 2008 | I14: Lee et al 2017 | J14: doi: http://dx.doi.org/10.1101/054494
C15: Me = 2NeLk/ln(NeL) | D15: Me = 2NeLk/ln(2Ne) | E15: Me = 2NeLk/ln(4NeLk) | F15: Me = 2NeLk | G15: Me=4NeLk | H15: Me = 2NeLk | I15: Eq. (10) | J15: Eq(11)
A16: Effective number of chr. Segments | B16: Me = | C16: =2*C9*C10*C11/LN(C9*C10) -> 8685.889638 | D16: =2*C9*C10*C11/LN(2*C9) -> 7893.799495 | E16: =2*C9*C10*C11/LN(4*C9*C10*C11) -> 5130.289244 | F16: =2*C9*C10*C11 -> 60000 | G16: =2*F16 -> 120000 | H16: =2*C9*C10*C11 -> 60000 | I16: =C$11 / ( 1/(8*C9^2*C$10^2/(LN(4*C9*C$10+1)+4*C9*C$10*(LN(4*C9*C$10+1)-1))) + (1/(3*C9)) * (C$11-1)) -> 2253.122841 | J16: =C$11 / ( 1/(4*C9^2*C$10^2/(LN(2*C9*C$10+1)+2*C9*C$10*(LN(2*C9*C$10+1)-1))) + (1/(3*C9)) * (C$11-1)) -> 2313.160586
A17: Proportion of genetic variance captured by markers = b | B17: q2 = | C17: =C8/(C16+C8) -> 0.8519935594 | D17: =C8/(D16+C8) -> 0.8636503466 | E17: =C8/(E16+C8) -> 0.9069424573 | F17: =C8/(F16+C8) -> 0.4545454545 | G17: =C8/(G16+C8) -> 0.2941176471 | H17: 1 | I17: =C8/(C8+I16) -> 0.9568806089 | J17: =C8/(C8+J16) -> 0.9557824348
A18: Accuracy of estimating SNP effects | B18: Theta = | C18: =C13*C17*C12/C16 -> 0.05885363008 | D18: =C13*D17*C12/D16 -> 0.06564522044 | E18: =C13*E17*C12/E16 -> 0.1060691607 | F18: =C13*F17*C12/F16 -> 0.004545454545 | G18: =C13*G17*C12/G16 -> 0.001470588235
A19: Accuracy of genomic prediction as predictor of effects captured by markers | B19: rQhat = | C19: =SQRT(C18/(1+C18)) -> 0.2357592073 | D19: =SQRT(D18/(1+D18)) -> 0.2481962611 | E19: =SQRT(E18/(1+E18)) -> 0.3096730592 | F19: =SQRT(F18/(1+F18)) -> 0.0672672794 | G19: 0.03832008326 | H19: =SQRT(C12/(C12+(H16/C13))) -> 0.09950371902
A20: Accuracy of genomic prediction as predictor of full breeding value | B20: rGBV = | C20: =SQRT(C17)*C19 -> 0.2176139933 | D20: =SQRT(C17)*C19 -> 0.2176139933 | E20: =SQRT(E17)*E19 -> 0.294912575 | F20: =SQRT(F17)*F19 -> 0.04535159052 | G20: 0.02078198301 | H20: =H19*H17 -> 0.09950371902 | I20: =SQRT(C12/(C12+(I16/C13))) -> 0.4585802956 | J20: =SQRT(C12/(C12+(J16/C13))) -> 0.4538302208
B23: Compare methods with the same Me = | C23: 1303
C24: Me = 2NeLk/ln(NeL) | D24: Me = 2NeLk/ln(2Ne) | E24: Me = 2NeLk/ln(4NeLk) | F24: Me = 2NeLk | G24: Me=4NeLk | H24: Me = 2NeLk | I24: Eq. (10) | J24: Eq(11)
A25: Effective number of chr. Segments | B25: Me = | C25: =$C23 -> 1303 | D25: =$C23 -> 1303 | E25: 1303 | F25: 1303 | G25: 1303 | H25: 1303 | I25: 1303 | J25: 1303
A26: Proportion of genetic variance captured by markers = b | B26: q2 = | C26: =C8/(C25+C8) -> 0.9746018751 | D26: =C8/(C25+C8) -> 0.9746018751 | E26: =C8/(E25+C8) -> 0.9746018751 | F26: =C8/(F25+C8) -> 0.9746018751 | G26: =C8/(G25+C8) -> 0.9746018751 | H26: 1 | I26: =C8/(C8+I25) -> 0.9746018751 | J26: =C8/(C8+J25) -> 0.9746018751
B27: Theta = | C27: =C13*C26*C12/C25 -> 0.4487806025 | D27: =C13*D26*C12/D25 -> 0.4487806025 | E27: =C13*E26*C12/E25 -> 0.4487806025 | F27: =C13*F26*C12/F25 -> 0.4487806025 | G27: =C13*G26*C12/G25 -> 0.4487806025
A28: Accuracy of genomic prediction as predictor of effects captured by markers | B28: rQhat = | C28: =SQRT(C27/(1+C27)) -> 0.5565647891 | D28: =SQRT(D27/(1+D27)) -> 0.5565647891 | E28: =SQRT(E27/(1+E27)) -> 0.5565647891 | F28: =SQRT(F27/(1+F27)) -> 0.5565647891 | G28: 0.5565647891 | H28: =SQRT(C12/(C12+(H25/C13))) -> 0.5615083657
A29: Accuracy of genomic prediction as predictor of full breeding value | B29: rGBV = | C29: =SQRT(C26)*C28 -> 0.5494514814 | D29: =SQRT(C26)*C28 -> 0.5494514814 | E29: =SQRT(E26)*E28 -> 0.5494514814 | F29: =SQRT(F26)*F28 -> 0.5494514814 | G29: 0.5494514814 | H29: =H28*H26 -> 0.5615083657 | I29: =SQRT(C12/(C12+(I25/C13))) -> 0.5615083657 | J29: =SQRT(C12/(C12+(J25/C13))) -> 0.5615083657

Sheet Sheet2

Sheet Sheet3

Sheet Sheet4
E1: values for "alpha"
F2: Ne = 200 | G2: Ne = 1000
E3: Me | F3: =2.2*200 -> 440 | G3: =2.2*1000 -> 2200
D4: Nmarkers
D5: 50000 | F5: =D5/(D5+F3) -> 0.9912767645 | G5: =D5/(G3+D5) -> 0.9578544061
D6: 500000 | F6: =D6/(D6+F3) -> 0.9991207737 | G6: =D6/(D6+G3) -> 0.9956192752
